bitfinex/quotes_SOLUSD_20220109
["timestamp","ask_amount","ask_price","bid_price","bid_amount"]
[1641755956615,61.31842577,144.0,143.91,0.25]
[1641755957419,50.89672577,144.0,143.91,0.25]
[1641755958018,10.4225,143.99,143.91,0.25]
[1641755959018,28.3205,144.0,143.91,2.29082586]
[1641755959417,25.3205,144.0,143.91,2.29082586]
[1641755959817,25.3205,144.0,143.92,25.5562077]
[1641755960027,1.736,144.0,143.92,25.5562077]
[1641755960221,1.96251859,144.02,143.93,2.29082586]
[1641755960426,1.96251859,144.02,143.93,15.36082586]
[1641755960822,3.91577999,144.05,143.94,1.78082586]
[1641755961027,28.94531908,144.04,143.95,40.65176256]
[1641755961230,28.94531908,144.04,143.97,10.4162]
[1641755961426,28.94531908,144.04,143.98,0.25]
[1641755962227,3.69851859,144.07,143.98,0.25]
[1641755962527,1.96251859,144.06,143.98,0.25]
[1641755963126,29.74950194,144.05,143.98,0.25]
[1641755964429,29.74950194,144.05,143.98,31.22870235]
[1641755964630,3.69851859,144.07,143.98,31.22870235]
[1641755965131,3.69851859,144.07,143.98,41.64400235]
[1641755965929,3.69851859,144.07,143.98,43.42482821]
[1641755966734,1.96251859,144.07,143.99,1.995]
[1641755966933,1.96251859,144.07,144.01,10.4133]
[1641755967133,98.6048,144.08,144.01,10.4133]
[1641755967534,98.6048,144.08,144.02,26.22208439]
[1641755967738,3.69751859,144.09,144.02,26.22208439]
[1641755968735,3.69751859,144.09,144.02,36.63448439]
[1641755968935,1.96251859,144.09,144.03,0.51]
[1641755969335,1.96251859,144.09,144.03,0.25]
[1641755969538,1.96251859,144.09,144.02,26.22208439]
[1641755969939,1.96251859,144.09,144.03,0.25]
[1641755970137,1.96251859,144.11,144.03,0.25]
[1641755970537,3.0,144.1,144.03,0.25]
[1641755970738,4.735,144.1,144.03,0.25]
[1641755970938,4.735,144.1,144.02,36.63458439]
[1641755971640,6.69751859,144.1,144.02,26.22208439]
[1641755971841,6.69751859,144.1,144.03,0.25]
[1641755972042,4.96251859,144.1,144.03,0.25]
[1641755972243,1.96251859,144.09,144.03,0.25]
[1641755972664,3.0,144.1,144.03,0.25]
[1641755973266,3.0,144.1,144.02,27.95708439]
[1641755973565,3.0,144.1,144.02,26.22208439]
[1641755973966,40.62000997,144.1,144.02,26.22208439]
[1641755974667,3.69751859,144.09,144.02,26.22208439]
[1641755975373,3.69751859,144.09,144.01,10.07]
[1641755975570,14.11261859,144.09,144.0,1.735]
[1641755976071,35.1508,144.09,144.0,1.735]
[1641755976769,1.96251859,144.08,144.0,1.735]
[1641755976971,38.37416742,144.07,144.0,1.735]
[1641755978170,38.37416742,144.07,143.98,24.87304422]
[1641755978369,10.4179,144.05,143.98,24.87304422]
[1641755978570,10.4179,144.05,143.95,105.1594]
[1641755978772,1.736,144.04,143.95,23.8517]
[1641755979170,1.736,144.04,143.95,25.63252586]
[1641755979571,1.736,144.04,143.96,27.36809802]
[1641755979771,101.6067,144.06,143.96,27.36809802]
[1641755979971,101.6067,144.06,143.97,2.03082586]
[1641755980372,101.6067,144.06,143.98,2.04082586]
[1641755980578,22.6351,144.06,143.98,3.77582586]
[1641755980772,22.6351,144.06,143.99,12.44532586]
[1641755980974,79.16581859,144.09,143.99,12.44532586]
[1641755981175,79.16581859,144.09,144.0,28.34619108]
[1641755981374,3.0,144.08,144.01,0.25]
[1641755981877,79.16581859,144.09,144.01,0.25]
[1641755982474,1.735,144.09,144.01,2.29082586]
[1641755982876,1.735,144.09,144.02,3.0]
[1641755983078,1.96251859,144.11,144.04,10.4111]
[1641755983276,1.735,144.1,144.04,10.4111]
[1641755983478,4.735,144.1,144.04,10.4111]
[1641755983983,1.735,144.1,144.04,10.4111]
[1641755984779,3.69751859,144.12,144.04,10.4111]
[1641755984979,3.0,144.11,144.04,10.4111]
[1641755986279,3.0,144.11,144.05,0.25]
[1641755986481,3.0,144.11,144.05,10.9204]
[1641755986781,77.61161859,144.13,144.05,10.9204]
[1641755986986,1.96251859,144.13,144.06,1.735]
[1641755987182,1.96251859,144.14,144.07,23.22356518]
[1641755987382,1.96251859,144.14,144.08,1.734]
[1641755987684,1.96251859,144.14,144.08,3.51482586]
[1641755988082,0.07962902,144.15,144.08,1.734]
[1641755988285,0.07962902,144.15,144.07,33.88186518]
[1641755989184,1.96251859,144.14,144.07,33.88186518]
[1641755989385,1.96251859,144.14,144.07,10.6583]
[1641755989885,0.07962902,144.15,144.07,10.6583]
[1641755989886,2.04214761,144.15,144.07,10.6583]
[1641755990385,2.04214761,144.15,144.07,35.28577171]
[1641755991187,1.96251859,144.14,144.08,0.26]
[1641755991415,1.96251859,144.14,144.11,10.4059]
[1641755991615,1.96251859,144.14,144.12,6.06439992]
[1641755991816,0.07962902,144.15,144.12,6.31439992]
[1641755992417,0.07962902,144.15,144.12,18.50022578]
[1641755992616,0.07962902,144.15,144.12,18.57022578]
[1641755993018,0.07962902,144.15,144.13,1.734]
[1641755993417,0.07962902,144.15,144.14,36.31439992]
[1641755993619,0.07962902,144.15,144.14,6.06439992]
[1641755993818,39.07962902,144.15,144.14,6.06439992]
[1641755994019,39.07962902,144.15,144.11,10.07]
[1641755995623,0.07962902,144.15,144.11,10.07]
[1641755995823,0.07962902,144.15,144.11,20.4759]
[1641755997224,0.07962902,144.15,144.12,23.95493268]
[1641755997425,0.07962902,144.15,144.13,16.46849992]
[1641755997824,0.07962902,144.15,144.14,35.25]
[1641755998425,0.07962902,144.15,144.14,35.51]
[1641755998627,0.34851598,144.16,144.15,27.0]
[1641755998824,0.34851598,144.16,144.15,3.03219997]
[1641755999027,0.34851598,144.16,144.15,6.31439992]
[1641755999426,0.34851598,144.16,144.15,36.17615097]
[1641756000025,0.34851598,144.16,144.15,37.95697683]
[1641756000225,2.84851598,144.2,144.15,39.17615097]
[1641756000427,2.84851598,144.2,144.16,10.6521]
[1641756000826,73.5503,144.22,144.16,10.4021]
[1641756001026,1.733,144.21,144.14,1.734]
[1641756001229,1.734,144.22,144.06,22.8552]
[1641756001426,1.734,144.22,144.15,0.02]
[1641756001826,3.69651859,144.22,144.15,0.04]
[1641756002026,26.38841859,144.22,144.15,0.04]
[1641756002228,13.4062,144.21,144.15,0.04]
[1641756002429,3.69551859,144.2,144.15,0.04]
[1641756003731,1.733,144.2,144.15,0.04]
[1641756004829,30.29099081,144.2,144.15,0.04]
[1641756005429,54.80779081,144.2,144.15,0.04]
[1641756005629,3.0,144.19,144.15,0.04]
[1641756005830,1.734,144.18,144.15,0.04]
[1641756006030,25.5881395,144.17,144.15,0.04]
[1641756006232,50.734,144.16,144.15,0.04]
[1641756007732,61.1438,144.16,144.15,0.04]
[1641756008632,50.96251859,144.16,144.15,0.04]
[1641756009034,10.4083,144.18,144.15,6.10439992]
[1641756009236,5.64977999,144.22,144.15,7.88522578]
[1641756009534,3.0,144.21,144.15,6.10439992]
[1641756009936,3.91577999,144.22,144.15,6.10439992]
[1641756010134,3.91577999,144.22,144.15,28.57708239]
[1641756010436,63.82124999,144.24,144.16,0.25]
[1641756010638,62.08824999,144.24,144.15,25.54488244]
[1641756010835,3.0,144.23,144.15,22.51268247]
[1641756011037,3.0,144.23,144.15,22.53268247]
[1641756011235,3.0,144.23,144.15,22.55268247]
[1641756011637,13.4043,144.23,144.15,22.55268247]
[1641756013037,13.4043,144.23,144.16,0.25]
[1641756013236,15.1373,144.23,144.15,22.55268247]
[1641756013840,15.1373,144.23,144.15,0.08]
[1641756014438,77.3165,144.22,144.15,0.08]
[1641756014639,10.4108,144.19,144.15,0.08]
[1641756014838,19.11717765,144.18,144.15,0.08]
[1641756015038,22.11717765,144.18,144.15,0.08]
[1641756015338,24.7863,144.17,144.15,0.08]
[1641756015638,80.1449,144.16,144.15,0.08]
[1641756016842,15.1449,144.16,144.15,0.08]
[1641756017044,12.1449,144.16,144.15,0.08]
[1641756017242,10.4109,144.16,144.15,0.08]
[1641756017444,100.6567,144.17,144.15,0.08]
[1641756018042,24.7863,144.17,144.15,0.08]
[1641756020045,35.1952,144.17,144.15,0.08]
[1641756020744,36.9292,144.17,144.15,0.08]
[1641756020945,35.1952,144.17,144.15,0.08]
[1641756021946,37.734,144.16,144.15,0.08]
[1641756022147,1.734,144.16,144.15,0.08]
[1641756022349,99.3953,144.2,144.15,6.14439992]
[1641756022546,25.2075,144.2,144.15,6.14439992]
[1641756022747,1.734,144.2,144.15,6.14439992]
[1641756022950,3.91577999,144.21,144.15,6.14439992]
[1641756023148,3.91577999,144.21,144.15,34.43141335]
[1641756023551,1.733,144.22,144.15,34.43141335]
[1641756023750,4.733,144.22,144.15,34.43141335]
[1641756024350,4.733,144.22,144.16,0.25]
[1641756024548,3.0,144.22,144.15,28.36701343]
[1641756024753,4.733,144.22,144.15,28.36701343]
[1641756027285,3.0,144.22,144.15,28.36701343]
[1641756027484,13.4053,144.22,144.15,28.36701343]
[1641756027684,1.733,144.21,144.15,0.08]
[1641756027884,25.3578,144.21,144.15,0.08]
[1641756028285,23.6248,144.21,144.15,0.08]
[1641756028888,3.0,144.2,144.15,0.08]
[1641756029088,23.6248,144.21,144.15,0.08]
[1641756029287,3.0,144.2,144.15,0.08]
[1641756029892,1.734,144.19,144.15,0.08]
[1641756030095,75.0,144.17,144.04,10.07]
[1641756030295,1.734,144.16,144.04,10.07]
[1641756030693,30.13615769,144.16,144.05,30.60048886]
[1641756031095,10.4116,144.13,144.05,30.60048886]
[1641756031294,1.735,144.12,144.05,30.60048886]
[1641756032095,24.2131,144.15,144.05,30.60048886]
[1641756032295,12.1454,144.14,144.05,30.60048886]
[1641756032498,10.4114,144.14,144.05,32.33448886]
[1641756033397,10.4114,144.14,144.06,0.25]
[1641756033696,12.1454,144.14,144.06,0.25]
[1641756034098,12.1454,144.14,144.05,30.60048886]
[1641756035399,12.1454,144.14,144.06,0.25]
[1641756035601,10.4114,144.14,144.06,0.25]
[1641756036723,10.4114,144.14,144.06,1.984]
[1641756039125,12.1454,144.14,144.06,1.984]
[1641756039326,11.6454,144.14,144.06,0.25]
[1641756039525,11.6454,144.14,144.05,30.60048886]
[1641756040226,33.58262148,144.13,144.05,30.60048886]
[1641756040424,1.735,144.12,144.05,30.60048886]
[1641756041627,1.735,144.14,144.05,30.60048886]
[1641756041827,10.4128,144.12,144.05,30.60048886]
[1641756042229,10.4128,144.12,144.03,10.4117]
[1641756042430,10.4128,144.12,144.02,1.734]
[1641756042731,10.4156,144.08,144.01,1.735]
[1641756042927,10.4156,144.08,144.0,10.07]
[1641756043330,1.735,144.07,144.01,28.06721051]
[1641756043530,10.4156,144.08,144.01,28.06721051]
[1641756044334,10.4156,144.08,143.98,1.735]
[1641756044535,24.675,144.09,143.97,1.78082586]
[1641756044536,10.4168,144.06,143.97,1.78082586]
[1641756044741,1.735,144.05,143.97,1.78082586]
[1641756045338,1.735,144.05,143.98,26.06785331]
[1641756045537,10.4168,144.06,143.98,26.06785331]
[1641756045835,27.75127269,144.07,143.98,27.84867917]
[1641756046037,1.735,144.06,143.98,27.84867917]
[1641756046537,1.735,144.06,143.98,26.06785331]
[1641756047141,10.4174,144.05,143.98,26.06785331]
[1641756047941,1.735,144.08,143.98,26.06785331]
[1641756048140,98.6275,144.09,143.98,27.84867917]
[1641756048337,98.6275,144.09,143.99,0.25]
[1641756048540,98.6275,144.09,143.99,1.985]
[1641756048739,10.4166,144.07,143.99,1.985]
[1641756048938,10.4166,144.07,143.99,0.25]
[1641756050846,109.0427,144.09,143.99,2.29082586]
[1641756051244,109.0427,144.09,143.99,2.03082586]
[1641756051445,109.0427,144.09,143.99,0.25]
[1641756052353,75.2848,144.13,144.0,11.805]
[1641756052354,12.1474,144.13,144.0,11.805]
[1641756052547,12.1474,144.13,144.01,3.0]
[1641756052751,10.4124,144.13,144.02,1.735]
[1641756052949,1.735,144.12,144.02,26.39748618]
[1641756053348,1.735,144.13,144.02,26.39748618]
[1641756053750,1.735,144.13,144.03,10.6619]
[1641756055756,12.1468,144.13,144.03,10.6619]
[1641756057278,10.4118,144.13,144.03,10.6619]
[1641756058261,10.4118,144.13,144.04,1.735]
[1641756058458,1.735,144.12,144.05,24.99596474]
[1641756058857,3.0,144.11,144.05,24.99596474]
[1641756059659,3.0,144.12,144.05,24.99596474]
[1641756060058,13.4125,144.12,144.05,24.99596474]
[1641756060762,101.7697,144.14,144.05,24.99596474]
[1641756060960,101.7697,144.14,144.06,0.25]
[1641756061760,112.1813,144.14,144.06,0.25]
[1641756062793,112.1813,144.14,144.05,24.99596474]
[1641756062993,1.734,144.13,144.05,24.99596474]
[1641756063193,112.1813,144.14,144.05,24.99596474]
[1641756063404,112.1813,144.14,144.06,0.25]
[1641756063594,101.7697,144.14,144.06,0.25]
[1641756063793,1.734,144.16,144.07,6.0389]
[1641756063995,24.1506,144.17,144.08,1.734]
[1641756064194,25.8846,144.17,144.07,7.7729]
[1641756064394,25.8846,144.17,144.08,0.25]
[1641756064596,1.734,144.17,144.08,26.29683512]
[1641756064796,1.734,144.18,144.08,38.48576098]
[1641756065097,3.91577999,144.2,144.09,1.734]
[1641756065295,1.734,144.19,144.09,1.734]
[1641756065496,1.734,144.19,144.1,0.25]
[1641756066098,1.734,144.2,144.1,0.25]
[1641756066800,1.734,144.2,144.1,10.6566]
[1641756067099,1.734,144.2,144.11,27.30545399]
[1641756067304,1.734,144.2,144.11,33.34435399]
[1641756067501,1.734,144.2,144.12,0.25]
[1641756067702,126.24680577,144.21,144.12,0.25]
[1641756068003,1.734,144.2,144.12,0.25]
[1641756068201,12.1407,144.2,144.12,0.25]
[1641756068801,12.1407,144.2,144.11,43.75045399]
[1641756069001,12.1407,144.2,144.11,33.34435399]
[1641756070305,1.734,144.2,144.11,33.34435399]
[1641756070904,1.734,144.2,144.12,0.25]
[1641756071103,127.98080577,144.21,144.12,0.25]
[1641756071503,126.24680577,144.21,144.12,0.25]
[1641756071703,126.24680577,144.21,144.13,6.0389]
[1641756071902,126.24680577,144.21,144.14,0.25]
[1641756072304,126.24680577,144.21,144.14,24.21726911]
[1641756072804,136.65300577,144.21,144.14,24.21726911]
[1641756074408,136.65300577,144.21,144.14,23.96726911]
[1641756074409,111.7457,144.21,144.14,23.96726911]
[1641756075010,111.7457,144.21,144.15,6.0389]
[1641756075212,1.733,144.2,144.15,6.0389]
[1641756076512,111.7457,144.21,144.15,6.0389]
[1641756076715,101.3395,144.21,144.15,6.0389]
[1641756076914,5.35367791,144.23,144.15,6.0389]
[1641756077115,1.733,144.23,144.15,6.0389]
[1641756077614,1.733,144.23,144.16,0.25]
[1641756077813,27.17233213,144.23,144.16,0.25]
[1641756078016,27.17233213,144.23,144.17,6.0389]
[1641756078517,26.4089,144.24,144.17,37.26832784]
[1641756078718,3.0,144.23,144.17,37.26832784]
[1641756079317,3.0,144.23,144.17,6.0389]
[1641756080017,1.733,144.22,144.17,6.0389]
[1641756080518,12.138,144.22,144.17,6.0389]
[1641756080718,1.733,144.22,144.17,6.0389]
[1641756081543,34.80911962,144.23,144.15,6.0389]
[1641756081744,34.80911962,144.23,144.15,6.2889]
[1641756082147,3.0,144.23,144.15,6.2889]
[1641756083748,3.0,144.23,144.15,16.6919]
[1641756083952,3.0,144.23,144.15,18.4249]
[1641756086852,33.45028145,144.23,144.15,18.4249]
[1641756087052,33.45028145,144.23,144.15,8.0219]
[1641756087453,35.18328145,144.23,144.15,8.0219]
[1641756088054,4.733,144.23,144.15,8.0219]
[1641756088256,10.4018,144.27,144.16,1.78082586]
[1641756088455,3.91577999,144.28,144.22,0.30828814]
[1641756088656,3.91577999,144.28,144.23,2.04650646]
[1641756088855,3.91577999,144.28,144.24,0.25]
[1641756089061,3.91577999,144.28,144.25,29.32590339]
[1641756089355,3.91577999,144.28,144.26,16.70819992]
[1641756089554,25.04672295,144.35,144.26,19.70819992]
[1641756089755,25.04672295,144.35,144.27,1.732]
[1641756090057,7.999e-05,144.36,144.27,1.732]
[1641756090256,7.999e-05,144.36,144.3,10.3922]
[1641756090454,7.999e-05,144.36,144.28,3.25]
[1641756090655,148.37750268,144.39,144.29,1.732]
[1641756090955,29.4932533,144.38,144.26,31.93009509]
[1641756091154,1.732,144.37,144.26,31.93009509]
[1641756091356,1.732,144.37,144.27,0.25]
[1641756091555,24.70459412,144.35,144.27,10.6444]
[1641756091758,24.70459412,144.35,144.27,16.6833]
[1641756091955,4.732,144.34,144.27,6.0389]
[1641756092356,4.232,144.34,144.27,6.0389]
[1641756092959,10.3993,144.31,144.27,6.0389]
[1641756093158,1.732,144.3,144.27,6.0389]
[1641756093359,1.732,144.3,144.27,6.0789]
[1641756094366,10.3993,144.31,144.27,6.0789]
[1641756094563,12.1313,144.31,144.27,6.0789]
[1641756095264,10.3993,144.31,144.27,6.0789]
[1641756097566,12.1313,144.31,144.27,6.0789]
[1641756097969,1.732,144.31,144.27,6.0789]
[1641756098172,22.60064898,144.32,144.27,6.0789]
[1641756099667,1.732,144.31,144.27,6.0789]
[1641756100467,10.3984,144.3,144.27,6.0789]
[1641756100669,31.06051254,144.29,144.27,6.0789]
[1641756101268,32.79251254,144.29,144.27,6.0789]
[1641756101470,43.19181254,144.29,144.27,6.0789]
[1641756101672,32.79251254,144.29,144.27,6.0789]
[1641756101872,31.06051254,144.29,144.27,6.0789]
[1641756102470,41.45971254,144.29,144.27,6.0789]
[1641756102870,76.732,144.28,144.21,1.732]
[1641756103369,1.732,144.28,144.21,1.732]
[1641756103970,31.06051254,144.29,144.19,1.733]
[1641756104170,3.0,144.27,144.16,1.733]
[1641756104371,1.733,144.26,144.15,1.733]
[1641756104970,28.94603684,144.25,144.15,1.733]
[1641756105170,1.733,144.24,144.14,59.78740598]
[1641756105373,1.733,144.24,144.14,36.89050598]
[1641756105571,41.09169704,144.22,144.14,36.89050598]
[1641756106272,41.09169704,144.22,144.15,0.25]
[1641756107475,10.4041,144.22,144.15,0.25]
[1641756107706,10.4041,144.22,144.16,1.733]
[1641756107905,59.6926,144.26,144.16,1.733]
[1641756108304,59.6926,144.26,144.15,1.983]
[1641756108508,25.4257746,144.25,144.15,1.983]
[1641756108706,25.4257746,144.25,144.16,1.78082586]
[1641756108906,25.4257746,144.25,144.17,26.39921801]
[1641756109106,1.733,144.27,144.17,26.39921801]
[1641756109306,103.2973,144.28,144.18,4.78082586]
[1641756109506,103.2973,144.28,144.19,0.25]
[1641756109710,103.2973,144.28,144.17,26.39921801]
[1641756109906,1.733,144.27,144.17,26.39921801]
[1641756110105,28.07925923,144.26,144.17,26.39921801]
[1641756110307,38.48075923,144.26,144.17,12.3843]
[1641756110508,38.48075923,144.26,144.17,1.983]
[1641756110910,1.733,144.25,144.17,0.25]
[1641756111412,1.733,144.25,144.16,0.25]
[1641756111612,29.81225923,144.26,144.16,0.25]
[1641756111810,24.78735341,144.22,144.16,0.25]
[1641756112711,24.78735341,144.22,144.16,0.32]
[1641756113711,35.19175341,144.22,144.16,0.32]
[1641756114312,35.19175341,144.22,144.16,2.10082586]
[1641756116012,24.78735341,144.22,144.16,2.10082586]
[1641756116712,1.733,144.26,144.16,12.17082586]
[1641756116911,1.733,144.3,144.17,0.26]
[1641756117113,10.399,144.3,144.22,10.398]
[1641756117317,101.7675,144.32,144.22,10.398]
[1641756117515,101.7675,144.32,144.23,0.25]
[1641756117713,24.83514518,144.31,144.23,0.25]
[1641756118313,10.3988,144.3,144.21,0.25]
[1641756118514,30.82301939,144.28,144.21,0.25]
[1641756119213,30.82301939,144.28,144.22,0.37068478]
[1641756119415,30.82301939,144.28,144.22,0.07]
[1641756119615,67.0,144.26,144.15,11.803]
[1641756119817,1.733,144.25,144.15,10.07]
[1641756120017,3.0,144.25,144.15,10.07]
[1641756120217,10.4043,144.22,144.15,10.07]
[1641756120417,28.23096474,144.24,144.16,1.733]
[1641756120618,28.23096474,144.24,144.17,26.64684998]
[1641756120818,1.733,144.29,144.17,26.89684998]
[1641756121020,126.4235,144.3,144.18,1.733]
[1641756121418,126.4235,144.3,144.19,0.25]
[1641756121419,3.61935145,144.29,144.19,0.25]
[1641756121919,10.4005,144.27,144.19,10.6503]
[1641756122321,10.4005,144.27,144.19,0.25]
[1641756123328,10.4005,144.27,144.18,0.25]
[1641756123534,10.4005,144.27,144.18,1.983]
[1641756124731,10.4005,144.27,144.18,0.25]
[1641756124934,10.4005,144.27,144.17,0.25]
[1641756125134,10.4005,144.27,144.18,1.733]
[1641756125532,10.4005,144.27,144.19,0.25]
[1641756126557,24.80676499,144.25,144.17,0.25]
[1641756126757,24.80676499,144.25,144.17,10.6511]
[1641756126958,24.80676499,144.25,144.2,0.02110491]
[1641756128359,10.4011,144.27,144.2,0.02110491]
[1641756128558,22.6285,144.29,144.2,0.02110491]
[1641756129359,23.22438509,144.28,144.2,0.02110491]
[1641756129760,33.62428509,144.28,144.2,0.02110491]
[1641756130467,23.22438509,144.28,144.2,0.02110491]
[1641756130659,23.22438509,144.28,144.21,1.733]
[1641756131060,33.62458509,144.28,144.21,1.733]
[1641756131963,33.62458509,144.28,144.22,0.2710986]
[1641756132364,10.4002,144.28,144.22,0.2710986]
[1641756132569,12.36353124,144.3,144.22,0.2710986]
[1641756132967,10.3987,144.3,144.22,0.2710986]
[1641756133371,31.56556241,144.29,144.22,0.2710986]
[1641756133767,41.96466241,144.29,144.22,0.0210986]
[1641756135169,43.92949365,144.29,144.22,0.0210986]
[1641756135368,1.733,144.28,144.22,0.0210986]
[1641756135576,10.4019,144.25,144.22,0.0210986]
[1641756136971,10.4019,144.25,144.19,0.25]
[1641756137671,10.4019,144.25,144.19,1.983]
[1641756138576,31.68028491,144.27,144.19,1.983]
[1641756138774,42.08138491,144.27,144.19,1.983]
[1641756139475,42.08138491,144.27,144.19,1.733]
[1641756139879,1.733,144.26,144.18,0.0210923]
[1641756140077,43.81438491,144.27,144.18,0.0210923]
[1641756140779,45.77921615,144.27,144.18,0.0210923]
[1641756142078,45.77921615,144.27,144.17,26.16911979]
[1641756142379,45.77921615,144.27,144.18,0.25]
[1641756143280,10.4035,144.23,144.17,26.16911979]
[1641756143478,10.4035,144.23,144.17,0.02110491]
[1641756144078,10.4035,144.23,144.17,1.75410491]
[1641756144482,10.4035,144.23,144.18,0.25]
[1641756144882,24.72885301,144.24,144.18,0.25]
[1641756145285,10.4026,144.25,144.18,0.25]
[1641756145481,1.96483124,144.27,144.18,0.25]
[1641756145684,1.96483124,144.27,144.19,1.733]
[1641756145885,1.96483124,144.27,144.2,0.25]
[1641756146082,20.4695,144.29,144.21,1.733]
[1641756146282,30.53492333,144.27,144.21,1.733]
[1641756146583,30.53492333,144.27,144.22,0.25]
[1641756147883,44.832,144.29,144.22,0.25]
[1641756148082,34.762,144.29,144.22,0.25]
[1641756148782,10.3995,144.29,144.22,0.25]
[1641756148982,31.55190973,144.28,144.22,0.25]
[1641756150385,41.95190973,144.28,144.22,0.25]
[1641756151886,41.95190973,144.28,144.24,0.0210923]
[1641756156929,41.95190973,144.28,144.2,0.27108599]
[1641756157231,41.95190973,144.28,144.2,10.67068599]
[1641756158528,41.95190973,144.28,144.2,0.27108599]
[1641756159528,41.95190973,144.28,144.2,0.02108599]
[1641756159928,47.22926082,144.18,144.17,10.07]
[1641756160128,46.0,144.17,144.11,6.96131384]
[1641756160334,49.0,144.17,144.11,5.22831384]
[1641756160729,1.734,144.16,144.11,5.22831384]
[1641756160935,78.20810648,144.17,144.11,5.22831384]
[1641756161134,46.0,144.17,144.11,5.22831384]
[1641756161331,46.0,144.17,144.08,26.28485954]
[1641756161732,10.4086,144.16,144.08,26.28485954]
[1641756161933,10.4086,144.16,144.09,1.734]
[1641756162733,12.63656082,144.18,144.09,12.1413]
[1641756162936,12.63656082,144.18,144.1,0.25]
[1641756162937,2.22926082,144.18,144.1,0.25]
[1641756163133,2.22926082,144.18,144.11,1.734]
[1641756163334,2.22926082,144.18,144.12,0.25]
[1641756163535,6.082e-05,144.18,144.13,75.0]
[1641756163863,77.7529,144.24,144.19,10.4002]
[1641756164036,1.734,144.26,144.19,10.4002]
[1641756165237,61.95635588,144.27,144.19,10.4002]
[1641756165836,61.95635588,144.27,144.17,10.4011]
[1641756166036,61.95635588,144.27,144.17,13.9111]
[1641756166835,61.95635588,144.27,144.17,13.6511]
[1641756167636,61.95635588,144.27,144.17,10.6511]
[1641756168439,61.95635588,144.27,144.17,0.25]
[1641756169039,61.95635588,144.27,144.16,1.733]
[1641756169243,61.95635588,144.27,144.15,24.30000734]
[1641756169441,61.95635588,144.27,144.16,3.25]
[1641756169639,60.22335588,144.27,144.17,1.733]
[1641756169840,60.22335588,144.27,144.18,0.25]
[1641756170841,60.22335588,144.27,144.18,10.6508]
[1641756171040,61.95635588,144.27,144.18,10.6508]
[1641756172943,61.95635588,144.27,144.18,0.25]
[1641756178749,60.22335588,144.27,144.18,0.25]
[1641756178955,12.1327,144.29,144.19,1.733]
[1641756179151,88.8405,144.31,144.19,1.733]
[1641756179354,88.8405,144.31,144.2,0.51]
[1641756179552,88.8405,144.31,144.21,1.733]
[1641756179951,23.80096841,144.3,144.22,0.25]
[1641756180350,23.80096841,144.3,144.21,10.3982]
[1641756180551,25.53396841,144.3,144.21,10.3982]
[1641756181650,25.53396841,144.3,144.22,0.25]
[1641756181850,35.93246841,144.3,144.22,0.25]
[1641756182551,35.93246841,144.3,144.19,10.3998]
[1641756182751,60.02376841,144.3,144.19,10.3998]
[1641756183852,60.02376841,144.3,144.2,0.25]
[1641756184755,60.02376841,144.3,144.2,10.6491]
[1641756185857,60.02376841,144.3,144.2,0.25]
[1641756186058,60.02376841,144.3,144.19,3.51]
[1641756186258,60.02376841,144.3,144.19,3.25]
[1641756186681,60.02376841,144.3,144.19,0.25]
[1641756186881,70.09376841,144.3,144.18,12.133]
[1641756187083,70.09376841,144.3,144.18,10.401]
[1641756187283,70.09376841,144.3,144.19,0.25]
[1641756187983,70.09376841,144.3,144.19,10.6501]
[1641756188983,3.0,144.29,144.19,10.6501]
[1641756189183,10.4013,144.27,144.17,10.4013]
[1641756189386,1.733,144.26,144.17,10.6513]